fUST/lending_fUST_20240814
["ID","MTS","AMOUNT","RATE_DAILY","PERIOD"]
[334924636,1723648256084,-1813.77,0.00014246,2]
[334924637,1723648256093,-500.0,0.00014246,2]
[334924638,1723648256102,-500.0,0.00014246,2]
[334924639,1723648256112,-562.19,0.00014246,2]
[334924640,1723648256121,-500.0,0.00014246,2]
[334924641,1723648256130,-500.0,0.00014246,2]
[334924642,1723648256139,-670.746545,0.00014247,2]
[334924643,1723648256150,-158.50691,0.00014247,2]
[334924644,1723648256162,-200.0,0.00014273,2]
[334924645,1723648256171,-200.0,0.00014273,2]
[334924646,1723648256182,-151.0,0.00014273,2]
[334924647,1723648256191,-152.372487,0.00014273,2]
[334924648,1723648256202,-152.372487,0.00014273,2]
[334924649,1723648256211,-206.331629,0.00014273,2]
[334924650,1723648256222,-206.331629,0.00014273,2]
[334924651,1723648256233,-363.554608,0.00014273,2]
[334924652,1723648256243,-363.554608,0.00014273,2]
[334924653,1723648256254,-385.726912,0.00014273,2]
[334924654,1723648256265,-385.726912,0.00014273,2]
[334924655,1723648256275,-293.368436,0.00014273,2]
[334924656,1723648256284,-293.368436,0.00014273,2]
[334924657,1723648256293,-151.0,0.00014273,2]
[334924658,1723648256302,-151.0,0.00014273,2]
[334924659,1723648256311,-150.01,0.00014299,2]
[334924660,1723648256321,-1645.61929281,0.00014299,2]
[334924661,1723648256331,-151.0,0.00014299,2]
[334924662,1723648256342,-151.0,0.00014299,2]
[334924663,1723648256351,-207.728359,0.00014299,2]
[334924664,1723648256361,-207.728359,0.00014299,2]
[334924665,1723648256371,-40900.61072388,0.000143,2]
[334924666,1723648256380,-151.0,0.000143,2]
[334924667,1723648256389,-151.0,0.000143,2]
[334924668,1723648256399,-151.0,0.000143,2]
[334924669,1723648256408,-329.454328,0.000143,2]
[334924670,1723648256417,-329.454328,0.000143,2]
[334924671,1723648256426,-803.173427,0.000143,2]
[334924672,1723648256435,-803.173427,0.000143,2]
[334924673,1723648256445,-151.0,0.000143,2]
[334924674,1723648256454,-151.0,0.000143,2]
[334924675,1723648256463,-500.0,0.000143,2]
[334924676,1723648256473,-482.105641,0.000143,2]
[334924677,1723648256483,-482.105641,0.000143,2]
[334924678,1723648256492,-308.351092,0.000143,2]
[334924679,1723648256502,-308.351092,0.000143,2]
[334924680,1723648256512,-758.88059,0.000143,2]
[334924681,1723648256523,-758.88059,0.000143,2]
[334924682,1723648256532,-160.0,0.0001444,2]
[334924683,1723648256542,-4198.03753663,0.000145,4]
[334924684,1723648256555,-301.0,0.000145,2]
[334924685,1723648256565,-151.0,0.0001452,2]
[334924686,1723648256576,-151.0,0.0001452,2]
[334924687,1723648256586,-370.27934192,0.0001452,2]
[334924688,1723648256596,-500.0,0.0001452,2]
[334924689,1723648256605,-629.42,0.0001452,2]
[334924690,1723648256614,-500.0,0.0001452,2]
[334924691,1723648256626,-500.0,0.0001452,2]
[334924692,1723648256636,-500.0,0.0001452,2]
[334924693,1723648256646,-566.84,0.0001452,2]
[334924694,1723648256655,-500.0,0.0001452,2]
[334924695,1723648256664,-500.0,0.0001452,2]
[334924696,1723648256674,-500.0,0.0001452,2]
[334924697,1723648256684,-500.0,0.0001452,2]
[334924698,1723648256693,-500.0,0.0001452,2]
[334924699,1723648256702,-500.0,0.0001452,2]
[334924700,1723648256712,-500.0,0.0001452,2]
[334924701,1723648256722,-500.0,0.0001452,2]
[334924702,1723648256731,-151.0,0.0001452,2]
[334924703,1723648256741,-500.0,0.0001452,2]
[334924704,1723648256751,-250.937248,0.0001452,2]
[334924705,1723648256760,-151.0,0.0001452,2]
[334924706,1723648256777,-380.62879097,0.0001452,2]
[334924707,1723648256786,-500.0,0.0001452,2]
[334924708,1723648256796,-500.0,0.0001452,2]
[334924709,1723648256806,-500.0,0.0001452,2]
[334924710,1723648256816,-343.54896675,0.0001452,2]
[334924711,1723648256827,-500.0,0.0001452,2]
[334924712,1723648256837,-500.0,0.0001452,2]
[334924713,1723648256930,-500.0,0.0001452,2]
[334924714,1723648256941,-500.0,0.0001452,2]
[334924715,1723648256951,-500.0,0.0001452,2]
[334924716,1723648256960,-500.0,0.0001452,2]
[334924717,1723648256970,-610.53089319,0.0001452,2]
[334924718,1723648256980,-500.0,0.0001452,2]
[334924719,1723648256990,-151.0,0.0001452,2]
[334924720,1723648257003,-500.0,0.0001452,2]
[334924721,1723648257019,-500.0,0.0001452,2]
[334924722,1723648257029,-500.0,0.0001452,2]
[334924723,1723648257039,-500.0,0.0001452,2]
[334924724,1723648257050,-500.0,0.0001452,2]
[334924725,1723648257060,-500.0,0.0001452,2]
[334924726,1723648257070,-500.0,0.0001452,2]
[334924727,1723648257080,-500.0,0.0001452,2]
[334924728,1723648257090,-500.0,0.0001452,2]
[334924729,1723648257100,-152.041252,0.0001452,2]
[334924730,1723648257110,-212.08560506,0.0001452,2]
[334924731,1723648257120,-500.0,0.0001452,2]
[334924732,1723648257131,-500.0,0.0001452,2]
[334924733,1723648257141,-500.0,0.0001452,2]
[334924734,1723648257150,-500.0,0.0001452,2]
[334924735,1723648257160,-551.55,0.0001452,2]
[334924736,1723648257169,-500.0,0.0001452,2]
[334924737,1723648257179,-151.0,0.0001452,2]
[334924738,1723648257189,-584.95,0.0001452,2]
[334924739,1723648257198,-500.50145573,0.0001452,2]
[334924740,1723648257207,-500.0,0.0001452,2]
[334924741,1723648257216,-500.0,0.0001452,2]
[334924742,1723648257225,-500.0,0.0001452,2]
[334924743,1723648257235,-500.0,0.0001452,2]
[334924744,1723648257243,-500.0,0.0001452,2]
[334924745,1723648257253,-500.0,0.0001452,2]
[334924746,1723648257262,-500.0,0.0001452,2]
[334924747,1723648257280,-500.0,0.0001452,2]
[334924748,1723648257294,-615.08,0.0001452,2]
[334924749,1723648257304,-500.0,0.0001452,2]
[334924750,1723648257313,-500.0,0.0001452,2]
[334924751,1723648257323,-814.14,0.0001452,2]
[334924752,1723648257332,-500.0,0.0001452,2]
[334924753,1723648257342,-500.0,0.0001452,2]
[334924754,1723648257352,-500.0,0.0001452,2]
[334924755,1723648257361,-500.0,0.0001452,2]
[334924756,1723648257371,-500.0,0.0001452,2]
[334924757,1723648257380,-500.0,0.0001452,2]
[334924758,1723648257390,-500.0,0.0001452,2]
[334924759,1723648257399,-500.0,0.0001452,2]
[334924760,1723648257408,-500.0,0.0001452,2]
[334924761,1723648257419,-583.15636171,0.0001452,2]
[334924762,1723648257428,-500.0,0.0001452,2]
[334924763,1723648257437,-653.98,0.0001452,2]
[334924764,1723648257447,-500.0,0.0001452,2]
[334924765,1723648257457,-433.57261458,0.0001452,2]
[334924766,1723648257467,-500.0,0.0001452,2]
[334924767,1723648257476,-500.0,0.0001452,2]
[334924768,1723648257486,-500.0,0.0001452,2]
[334924769,1723648257495,-500.0,0.0001452,2]
[334924770,1723648257504,-500.0,0.0001452,2]
[334924771,1723648257520,-500.0,0.0001452,2]
[334924772,1723648257529,-500.0,0.0001452,2]
[334924773,1723648257538,-515.28,0.0001452,2]
[334924774,1723648257549,-500.0,0.0001452,2]
[334924775,1723648257560,-500.0,0.0001452,2]
[334924776,1723648257569,-500.0,0.0001452,2]
[334924777,1723648257579,-500.0,0.0001452,2]
[334924778,1723648257587,-596.41,0.0001452,2]
[334924779,1723648257597,-500.0,0.0001452,2]
[334924780,1723648257606,-500.0,0.0001452,2]
[334924781,1723648257616,-500.0,0.0001452,2]
[334924782,1723648257626,-500.0,0.0001452,2]
[334924783,1723648257638,-500.0,0.0001452,2]
[334924784,1723648257648,-500.0,0.0001452,2]
[334924785,1723648257657,-500.0,0.0001452,2]
[334924786,1723648257670,-500.0,0.0001452,2]
[334924787,1723648257692,-500.0,0.0001452,2]
[334924788,1723648257707,-750.56,0.0001452,2]
[334924789,1723648257725,-702.21,0.0001452,2]
[334924790,1723648257743,-500.0,0.0001452,2]
[334924791,1723648257763,-500.0,0.0001452,2]
[334924792,1723648257780,-500.0,0.0001452,2]
[334924793,1723648257798,-500.0,0.0001452,2]
[334924794,1723648257812,-500.0,0.0001452,2]
[334924795,1723648257827,-500.0,0.0001452,2]
[334924796,1723648257844,-500.0,0.0001452,2]
[334924797,1723648257862,-582.76,0.0001452,2]
[334924798,1723648257878,-500.0,0.0001452,2]
[334924799,1723648257890,-500.0,0.0001452,2]
[334924800,1723648257907,-500.0,0.0001452,2]
[334924801,1723648257920,-500.0,0.0001452,2]
[334924802,1723648257936,-500.0,0.0001452,2]
[334924803,1723648257949,-500.0,0.0001452,2]
[334924804,1723648257962,-500.0,0.0001452,2]
[334924805,1723648257976,-329.454328,0.0001452,2]
[334924806,1723648257993,-500.0,0.0001452,2]
[334924807,1723648258008,-500.0,0.0001452,2]
[334924808,1723648258024,-329.454328,0.0001452,2]
[334924809,1723648258038,-500.0,0.0001452,2]
[334924810,1723648258051,-500.0,0.0001452,2]
[334924811,1723648258065,-500.0,0.0001452,2]
[334924812,1723648258079,-803.173427,0.0001452,2]
[334924813,1723648258093,-803.173427,0.0001452,2]
[334924814,1723648258106,-500.0,0.0001452,2]
[334924815,1723648258120,-500.0,0.0001452,2]
[334924816,1723648258132,-500.0,0.0001452,2]
[334924817,1723648258145,-500.0,0.0001452,2]
[334924818,1723648258159,-500.0,0.0001452,2]
[334924819,1723648258172,-500.0,0.0001452,2]
[334924820,1723648258185,-207.728359,0.0001452,2]
[334924821,1723648258200,-590.94,0.0001452,2]
[334924822,1723648258216,-500.0,0.0001452,2]
[334924823,1723648258230,-500.0,0.0001452,2]
[334924824,1723648258245,-207.728359,0.0001452,2]
[334924825,1723648258259,-500.0,0.0001452,2]
[334924826,1723648258275,-500.0,0.0001452,2]
[334924827,1723648258289,-500.0,0.0001452,2]
[334924828,1723648258302,-508.1,0.0001452,2]
[334924829,1723648258316,-500.0,0.0001452,2]
[334924830,1723648258329,-500.0,0.0001452,2]
[334924831,1723648258342,-500.0,0.0001452,2]
[334924832,1723648258356,-500.0,0.0001452,2]
[334924833,1723648258371,-619.26,0.0001452,2]
[334924834,1723648258385,-500.0,0.0001452,2]
[334924835,1723648258398,-500.0,0.0001452,2]
[334924836,1723648258412,-151.0,0.0001452,2]
[334924837,1723648258426,-500.0,0.0001452,2]
[334924838,1723648258439,-500.0,0.0001452,2]
[334924839,1723648258454,-500.0,0.0001452,2]
[334924840,1723648258468,-500.0,0.0001452,2]
[334924841,1723648258481,-500.0,0.0001452,2]
[334924842,1723648258495,-500.0,0.0001452,2]
[334924843,1723648258509,-733.3,0.0001452,2]
[334924844,1723648258524,-500.0,0.0001452,2]
[334924845,1723648258538,-500.0,0.0001452,2]
[334924846,1723648258552,-500.0,0.0001452,2]
[334924847,1723648258570,-826.06,0.0001452,2]
[334924848,1723648258584,-500.0,0.0001452,2]
[334924849,1723648258601,-500.0,0.0001452,2]
[334924850,1723648258611,-500.0,0.0001452,2]
[334924851,1723648258621,-500.0,0.0001452,2]
[334924852,1723648258632,-151.0,0.0001452,2]
[334924853,1723648258642,-500.0,0.0001452,2]
[334924854,1723648258653,-581.37625334,0.0001452,2]
[334924855,1723648258663,-542.62,0.0001452,2]
[334924856,1723648258673,-500.0,0.0001452,2]
[334924857,1723648258682,-500.0,0.0001452,2]
[334924858,1723648258692,-460.41088892,0.0001452,2]
[334924859,1723648259102,-39.58911108,0.0001452,2]
[334924860,1723648259112,-500.0,0.0001452,2]
[334924861,1723648259121,-561.17,0.0001452,2]
[334924862,1723648259130,-34.89064592,0.0001452,2]
[334924863,1723648259142,-748.00935408,0.0001452,2]
[334924864,1723648259151,-387.64040292,0.0001452,2]
[334924865,1723648259843,-1011.58507215,0.00013598,2]
[334924866,1723648259853,-9.13470368,0.00013688,2]
[334924883,1723648442602,763.47,0.00027,120]
[334924885,1723649144149,-295.36122298,8.762e-05,2]
[334924886,1723649231095,-297.02871238,8.762e-05,2]
[334924887,1723649231123,-286.98858797,8.762e-05,2]
[334924888,1723649240126,-2565.32479824,8.762e-05,2]
[334924889,1723649250122,-156.14253798,8.762e-05,2]
[334924890,1723649250146,-135.55730009,8.77e-05,2]
[334924891,1723649250285,-64.44269991,8.77e-05,2]
[334924892,1723649250330,-183.373011,8.862e-05,2]
[334924893,1723649250386,-0.42503074,8.884e-05,2]
[334924895,1723649346337,-200.0,8.682e-05,2]
[334924896,1723649346359,-200.0,8.77e-05,2]
[334924897,1723649346380,-182.94798026,8.884e-05,2]
[334924898,1723649346401,-183.373011,8.906e-05,2]
[334924899,1723649346426,-55442.34208291,9.053e-05,2]
[334924900,1723649346448,-24900.0,9.054e-05,2]
[334924901,1723649346471,-233.333333,9.895e-05,2]
[334924902,1723649346494,-191.89316162,9.9e-05,2]
[334924903,1723649346515,-253.43192585,9.9e-05,2]
[334924904,1723649346539,-233.333333,9.923e-05,2]
[334924905,1723649346562,-233.333333,9.95e-05,2]
[334924906,1723649346584,-233.333333,9.977e-05,2]
[334924907,1723649346604,-1256.32432962,0.0001,2]
[334924908,1723649346626,-233.333333,0.00010004,2]
[334924909,1723649346648,-233.333333,0.00010031,2]
[334924910,1723649346670,-233.333333,0.00010058,2]
[334924911,1723649346690,-228.72951774,0.00010082,2]
[334924912,1723649348557,-20555.94539741,0.00010082,2]
[334924913,1723649348582,-233.333333,0.00010085,2]
[334924914,1723649348605,-233.333333,0.00010113,2]
[334924915,1723649348626,-1199.2569891,0.00010123,2]
[334924916,1723649348654,-233.333333,0.0001014,2]
[334924917,1723649348679,-400.0,0.0001014,2]
[334924918,1723649348703,-233.333333,0.00010167,2]
[334924919,1723649348730,-233.333333,0.00010194,2]
[334924920,1723649348756,-233.333333,0.00010221,2]
[334924921,1723649348782,-233.333333,0.00010248,2]
[334924922,1723649348805,-233.333333,0.00010276,2]
[334924923,1723649348828,-233.333333,0.00010303,2]
[334924924,1723649348851,-233.333333,0.0001033,2]
[334924925,1723649348872,-154.69833824,0.00010356,2]
[334924926,1723649348898,-233.333333,0.00010357,2]
[334924927,1723649348922,-463.64893982,0.00010383,2]
[334924928,1723649348945,-233.333333,0.00010384,2]
[334924929,1723649348971,-233.333333,0.00010411,2]
[334924930,1723649348993,-342.39119771,0.00010434,2]
[334924931,1723649349014,-1500.0,0.00010434,2]
[334924932,1723649349036,-433.79008414,0.00010434,2]
[334924933,1723649349059,-1980.0836111,0.00010435,2]
[334924934,1723649349080,-154.74467129,0.00010768,2]
[334924935,1723649349103,-27257.2528548,0.000119,2]
[334924936,1723649349125,-600.0,0.00012143,2]
[334924937,1723649373331,-1000.0,0.00012876,2]
[334924938,1723649373356,-1374.56140858,0.000129,2]
[334924939,1723649373380,-1631.06291493,0.000129,2]
[334924940,1723649373405,-27257.2528548,0.0001298,2]
[334924941,1723649373428,-500.0,0.00012986,2]
[334924942,1723649373457,-24888.7039459,0.0001299,2]
[334924943,1723649392719,1212.07259024,0.00010768,2]
[334924944,1723649396685,154.69833824,0.00010768,2]
[334924945,1723649397740,154.74467129,0.00010768,2]
[334924946,1723649397845,413.45265018,0.00010768,2]
[334924947,1723649406034,200.0,0.0001,2]
[334924948,1723649406082,400.0,0.0001137,2]
[334924949,1723649410477,579.82772819,0.00010768,2]
[334924950,1723649410512,1091.09453725,0.00010768,2]
[334924991,1723649431882,-79.60799964,0.0001299,2]
[334924992,1723649431913,-31.88762089,0.0001299,2]
[334925007,1723649438316,-32.81791366,0.0001299,2]
[334925008,1723649438329,-29481.48822951,0.0001299,2]
[334925009,1723649438338,-100000.0,0.00013,2]
[334925010,1723649438347,-5322.59618186,0.00013,2]
[334925011,1723649438360,-4113.10671066,0.00013,2]
[334925012,1723649438369,-150.112235,0.00013,2]
[334925013,1723649438379,-413.45265018,0.00013052,2]
[334925015,1723649438389,-1374.56140855,0.00013075,2]
[334925017,1723649438398,-150.112233,0.000132,2]
[334925018,1723649438408,-898.15627799,0.00013248,2]
[334925019,1723649438417,-1374.56140855,0.00013249,2]
[334925020,1723649438427,-600.0,0.00013373,2]
[334925021,1723649438437,-154.76012181,0.00013397,2]
[334925022,1723649438446,-150.112233,0.000134,2]
[334925023,1723649438456,-1374.56140855,0.00013424,2]
[334925024,1723649438466,-2127.07450646,0.00013519,2]
[334925025,1723649438476,-500.0,0.0001352,2]
[334925026,1723649438486,-617.67,0.0001352,2]
[334925027,1723649438495,-500.0,0.0001352,2]
[334925028,1723649438505,-500.0,0.0001352,2]
[334925029,1723649438514,-500.0,0.0001352,2]
[334925030,1723649438529,-150.13,0.0001352,2]
[334925031,1723649438537,-16916.21282087,0.00013587,2]
[334925032,1723649438549,-10341.04003393,0.00013587,2]
[334925033,1723649438559,-4636.50902321,0.00013588,2]
[334925034,1723649438568,-2711.31124135,0.00013597,2]
[334925035,1723649438578,-301.37434502,0.00013597,2]
[334925036,1723649438587,-1374.56140855,0.00013598,2]
[334925037,1723649438597,-1007.37187714,0.00013598,2]
[334925038,1723649438607,-154.76012181,0.00013599,2]
[334925039,1723649438617,-150.112233,0.000136,2]
[334925040,1723649438626,-35621.87559583,0.000136,2]
[334925041,1723649438636,-162.81928945,0.00013668,2]
[334925042,1723649438645,-1765.67532584,0.00013673,2]
[334925043,1723649438655,-665.1114012,0.00013673,2]
[334925044,1723649438664,-208.51638357,0.00013674,2]
[334925045,1723649438674,-810.98237385,0.00013674,2]
[334925046,1723649438683,-155.09355553,0.00013674,2]
[334925047,1723649438693,-306.98935808,0.00013675,2]
[334925048,1723649438702,-290.89125154,0.00013677,2]
[334925049,1723649438712,-493.03932546,0.00013677,2]
[334925050,1723649438721,-494.87154082,0.00013677,2]
[334925051,1723649438731,-493.03932546,0.00013677,2]
[334925052,1723649438741,-494.87154082,0.00013678,2]
[334925053,1723649438751,-6054.59958668,0.00013678,2]
[334925054,1723649438760,-569.13160243,0.00013678,2]
[334925055,1723649438773,-81771.7585645,0.00013678,2]
[334925056,1723649438782,-526.93553019,0.00013679,2]
[334925057,1723649438791,-154.89468095,0.00013679,2]
[334925058,1723649438801,-933.09765316,0.00013679,2]
[334925059,1723649438811,-160.77274964,0.00013679,2]
[334925060,1723649438822,-15848.71009405,0.0001368,2]
[334925061,1723649438831,-27257.2528548,0.0001368,2]
[334925062,1723649438841,-272.38247463,0.00013685,2]
[334925063,1723649438850,-180.65500369,0.00013686,2]
[334925064,1723649438860,-154.76012181,0.00013686,2]
[334925065,1723649438869,-154.76012181,0.00013686,2]
[334925066,1723649438879,-198.05040028,0.00013687,2]
[334925067,1723649438888,-523.12048822,0.00013687,2]
[334925068,1723649438897,-202.94579001,0.00013688,2]
[334925069,1723649438907,-154.77557233,0.00013688,2]
[334925070,1723649438916,-634.34,0.00013695,2]
[334925071,1723649438927,-634.34,0.00013696,2]
[334925072,1723649438938,-634.34,0.00013697,2]
[334925073,1723649438947,-634.34,0.00013697,2]
[334925074,1723649438956,-634.34,0.00013697,2]
[334925075,1723649438966,-634.34,0.00013697,2]
[334925076,1723649438976,-20784.67491515,0.00013697,2]
[334925077,1723649438985,-500.0,0.00013698,2]
[334925078,1723649438995,-500.0,0.00013698,2]
[334925079,1723649439007,-500.0,0.00013698,2]
[334925080,1723649439018,-500.0,0.00013698,2]
[334925081,1723649439028,-500.0,0.00013698,2]
[334925082,1723649439038,-500.0,0.00013698,2]
[334925083,1723649439048,-500.0,0.00013698,2]
[334925084,1723649439058,-500.0,0.00013698,2]
[334925085,1723649439067,-508.94656301,0.00013698,2]
[334925086,1723649439076,-507.0401322,0.00013698,2]
[334925087,1723649439086,-500.0,0.00013698,2]
[334925088,1723649439095,-548.87810918,0.00013698,2]
[334925089,1723649439105,-581.49926682,0.00013698,2]
[334925090,1723649439114,-546.97301708,0.00013698,2]
[334925091,1723649439123,-532.98101813,0.00013698,2]
[334925092,1723649439132,-506.6653325,0.00013698,2]
[334925093,1723649439142,-516.09364775,0.00013698,2]
[334925094,1723649439151,-500.0,0.00013698,2]
[334925095,1723649439160,-602.55,0.00013698,2]
[334925096,1723649439170,-509.37128122,0.00013698,2]
[334925097,1723649439179,-500.0,0.00013698,2]
[334925098,1723649439188,-503.03581998,0.00013698,2]
[334925099,1723649439198,-500.0,0.00013698,2]
[334925100,1723649439207,-500.0,0.00013698,2]
[334925101,1723649439216,-500.0,0.00013698,2]
[334925102,1723649439227,-500.0,0.00013698,2]
[334925103,1723649439236,-500.0,0.00013698,2]
[334925104,1723649439246,-504.45002124,0.00013698,2]
[334925105,1723649439255,-500.0,0.00013698,2]
[334925106,1723649439266,-500.0,0.00013698,2]
[334925107,1723649439275,-500.0,0.00013698,2]
[334925108,1723649439285,-500.0,0.00013698,2]
[334925109,1723649439294,-500.0,0.00013698,2]
[334925110,1723649439303,-500.0,0.00013698,2]
[334925111,1723649439312,-500.0,0.00013698,2]
[334925112,1723649439321,-500.0,0.00013698,2]
[334925113,1723649439331,-500.0,0.00013698,2]
[334925114,1723649439340,-500.0,0.00013698,2]
[334925115,1723649439349,-500.0,0.00013698,2]
[334925116,1723649439358,-500.0,0.00013698,2]
[334925117,1723649439368,-500.0,0.00013698,2]
[334925118,1723649439377,-500.0,0.00013698,2]
[334925119,1723649439387,-500.0,0.00013698,2]
[334925120,1723649439396,-500.0,0.00013698,2]
[334925121,1723649439405,-517.45,0.00013698,2]
[334925122,1723649439415,-500.0,0.00013698,2]
[334925123,1723649439424,-500.0,0.00013698,2]
[334925124,1723649439434,-500.0,0.00013698,2]
[334925125,1723649439443,-500.0,0.00013698,2]
[334925126,1723649439453,-500.0,0.00013698,2]
[334925127,1723649439462,-500.0,0.00013698,2]
[334925128,1723649439471,-501.04828112,0.00013698,2]
[334925129,1723649439481,-500.0,0.00013698,2]
[334925130,1723649439490,-500.0,0.00013698,2]
[334925131,1723649439500,-500.0,0.00013698,2]
[334925132,1723649439509,-509.68,0.00013698,2]
[334925134,1723649439521,-500.0,0.00013698,2]
[334925136,1723649439531,-500.0,0.00013698,2]
[334925138,1723649439540,-500.0,0.00013698,2]
[334925139,1723649439549,-500.0,0.00013698,2]
[334925140,1723649439560,-500.0,0.00013698,2]
[334925141,1723649439569,-500.0,0.00013698,2]
[334925150,1723649439738,-500.0,0.00013698,2]
[334925151,1723649439749,-500.0,0.00013698,2]
[334925152,1723649439759,-500.0,0.00013698,2]
[334925153,1723649439772,-500.0,0.00013698,2]
[334925154,1723649439786,-500.0,0.00013698,2]
[334925155,1723649439795,-500.0,0.00013698,2]
[334925156,1723649439804,-502.03875762,0.00013698,2]
[334925157,1723649439814,-223.87042729,0.00013698,2]
[334925158,1723649439825,-500.0,0.00013698,2]
[334925159,1723649439834,-500.0,0.00013698,2]
[334925160,1723649439844,-500.0,0.00013698,2]
[334925161,1723649439854,-500.0,0.00013698,2]
[334925162,1723649439863,-500.0,0.00013698,2]
[334925163,1723649439873,-500.0,0.00013698,2]
[334925164,1723649439886,-579.61157667,0.00013698,2]
[334925166,1723649439895,-438.30613248,0.00013698,2]
[334925168,1723649439905,-500.0,0.00013698,2]
[334925170,1723649439915,-500.0,0.00013698,2]
[334925171,1723649439926,-500.0,0.00013698,2]
[334925172,1723649439938,-500.0,0.00013698,2]
[334925173,1723649439947,-500.0,0.00013698,2]
[334925174,1723649439957,-500.0,0.00013698,2]
[334925176,1723649439968,-500.0,0.00013698,2]
[334925177,1723649439978,-500.0,0.00013698,2]
[334925178,1723649439987,-500.0,0.00013698,2]
[334925179,1723649439997,-547.36,0.00013698,2]
[334925180,1723649440008,-500.0,0.00013698,2]
[334925181,1723649440019,-585.76034558,0.00013698,2]
[334925182,1723649440029,-500.0,0.00013698,2]
[334925184,1723649440038,-500.0,0.00013698,2]
[334925186,1723649440047,-500.0,0.00013698,2]
[334925188,1723649440057,-500.0,0.00013698,2]
[334925190,1723649440066,-500.0,0.00013698,2]
[334925191,1723649440077,-633.27462028,0.00013698,2]
[334925192,1723649440087,-500.0,0.00013698,2]
[334925193,1723649440096,-500.0,0.00013698,2]
[334925194,1723649440105,-500.0,0.00013698,2]
[334925195,1723649440116,-500.0,0.00013698,2]
[334925196,1723649440126,-185.01691445,0.00013698,2]
[334925197,1723649440136,-500.0,0.00013698,2]
[334925198,1723649440145,-500.0,0.00013698,2]
[334925199,1723649440155,-500.0,0.00013698,2]
[334925200,1723649440165,-500.0,0.00013698,2]
[334925201,1723649440174,-500.0,0.00013698,2]
[334925202,1723649440184,-500.0,0.00013698,2]
[334925203,1723649440193,-500.8458069,0.00013698,2]
[334925204,1723649440203,-500.0,0.00013698,2]
[334925205,1723649440212,-501.14409492,0.00013698,2]
[334925206,1723649440224,-500.0,0.00013698,2]
[334925207,1723649440233,-500.0,0.00013698,2]
[334925208,1723649440242,-500.0,0.00013698,2]
[334925209,1723649440251,-500.0,0.00013698,2]
[334925210,1723649440261,-500.0,0.00013698,2]
[334925211,1723649440275,-500.0,0.00013698,2]
[334925212,1723649440284,-500.0,0.00013698,2]
[334925213,1723649440294,-500.0,0.00013698,2]
[334925214,1723649440303,-500.0,0.00013698,2]
[334925215,1723649440313,-500.0,0.00013698,2]
[334925216,1723649440322,-687.56,0.00013698,2]
[334925217,1723649440331,-500.0,0.00013698,2]
[334925218,1723649440340,-500.0,0.00013698,2]
[334925219,1723649440349,-500.0,0.00013698,2]
[334925220,1723649440358,-500.0,0.00013698,2]
[334925221,1723649440367,-747.56,0.00013698,2]
[334925222,1723649440376,-500.0,0.00013698,2]
[334925223,1723649440386,-500.0,0.00013698,2]
[334925224,1723649440395,-500.0,0.00013698,2]
[334925225,1723649440405,-500.0,0.00013698,2]
[334925226,1723649440414,-506.64613819,0.00013698,2]
[334925227,1723649440423,-500.0,0.00013698,2]
[334925228,1723649440433,-500.0,0.00013698,2]